[Event "*** Titled Tuesday Blitz"]
[Site "Chess.com"]
[Date "2020.02.04"]
[Round "6"]
[White "ShimanovAlex"]
[Black "ChessPromotionAlex"]
[Result "1-0"]
[WhiteElo "2755"]
[BlackElo "2539"]
[TimeControl "180+2"]
[EndTime "10:18:58 PST"]
[Termination "ShimanovAlex won by resignation"]

1. d4 {[%clk 0:02:58]} 1... Nf6 {[%clk 0:03:01.2]} 2. Bg5 {[%clk 0:02:59.3]}
2... Ne4 {[%clk 0:02:59.9]} 3. Bf4 {[%clk 0:02:59.7]} 3... c5 {[%clk 0:03:01.1]}
4. f3 {[%clk 0:02:59.8]} 4... Qa5+ {[%clk 0:03:02]} 5. c3 {[%clk 0:03:00.3]}
5... Nf6 {[%clk 0:03:03]} 6. Nd2 {[%clk 0:02:59.6]} 6... cxd4 {[%clk 0:03:03.6]}
7. Nb3 {[%clk 0:03:00.5]} 7... Qd8 {[%clk 0:03:03.7]} 8. cxd4 {[%clk 0:03:00.9]}
8... d5 {[%clk 0:03:04.2]} 9. e3 {[%clk 0:03:01.7]} 9... g6 {[%clk 0:02:59.6]}
10. Bd3 {[%clk 0:03:01]} 10... Bg7 {[%clk 0:02:59.7]} 11. Ne2 {[%clk 0:03:01.8]}
11... O-O {[%clk 0:03:00.5]} 12. O-O {[%clk 0:03:02.8]} 12... Nc6 {[%clk
0:02:58.6]} 13. Rc1 {[%clk 0:03:03.6]} 13... Nd7 {[%clk 0:02:36.5]} 14. Bb5
{[%clk 0:03:03.3]} 14... Qb6 {[%clk 0:02:28.3]} 15. Bxc6 {[%clk 0:02:56]} 15...
bxc6 {[%clk 0:02:30.2]} 16. Nc3 {[%clk 0:02:55.7]} 16... e5 {[%clk 0:02:17.9]}
17. Bg3 {[%clk 0:02:55.5]} 17... Re8 {[%clk 0:02:09.8]} 18. Bf2 {[%clk
0:02:55.7]} 18... Qa6 {[%clk 0:02:00.7]} 19. Qd2 {[%clk 0:02:52.5]} 19... Rb8
{[%clk 0:02:00.4]} 20. Rfe1 {[%clk 0:02:50.6]} 20... Bh6 {[%clk 0:01:58.6]} 21.
Bg3 {[%clk 0:02:44.7]} 21... Rb4 {[%clk 0:01:20]} 22. Nxd5 {[%clk 0:02:44.3]}
22... Rxb3 {[%clk 0:01:19.9]} 23. Nc7 {[%clk 0:02:44.5]} 23... Qxa2 {[%clk
0:01:09.6]} 24. Nxe8 {[%clk 0:02:26.4]} 24... Rxb2 {[%clk 0:01:09.5]} 25. Qc3
{[%clk 0:02:27.5]} 25... Rxg2+ {[%clk 0:00:42.5]} 26. Kh1 {[%clk 0:02:28.2]}
26... Rb2 {[%clk 0:00:41.6]} 27. Nd6 {[%clk 0:02:24.7]} 27... Ba6 {[%clk
0:00:37.4]} 28. Qxc6 {[%clk 0:02:21.5]} 28... Nf8 {[%clk 0:00:22.8]} 29. Ra1
{[%clk 0:02:17.3]} 1-0

[Event "*** Titled Tuesday Blitz"]
[Site "Chess.com"]
[Date "2020.02.04"]
[Round "6"]
[White "messiboca"]
[Black "bhavesh1810"]
[Result "0-1"]
[WhiteElo "2600"]
[BlackElo "2150"]
[TimeControl "180+2"]
[EndTime "10:19:38 PST"]
[Termination "bhavesh1810 won by resignation"]

1. c4 {[%clk 0:03:01.9]} 1... Nf6 {[%clk 0:03:00.8]} 2. Nc3 {[%clk 0:03:00.8]}
2... e5 {[%clk 0:03:01.4]} 3. Nf3 {[%clk 0:03:01.1]} 3... Nc6 {[%clk 0:03:01.5]}
4. e3 {[%clk 0:03:02.3]} 4... Bb4 {[%clk 0:03:00.8]} 5. Nd5 {[%clk 0:03:02.8]}
5... Be7 {[%clk 0:03:00.9]} 6. Qc2 {[%clk 0:02:54.8]} 6... d6 {[%clk 0:03:01.7]}
7. a3 {[%clk 0:02:39.6]} 7... Be6 {[%clk 0:03:00.5]} 8. Nc3 {[%clk 0:02:27.4]}
8... O-O {[%clk 0:02:57.7]} 9. Be2 {[%clk 0:02:26.2]} 9... d5 {[%clk 0:02:55.7]}
10. Ng5 {[%clk 0:02:24.7]} 10... Qd7 {[%clk 0:01:56]} 11. cxd5 {[%clk 0:02:17]}
11... Bxd5 {[%clk 0:01:56.2]} 12. Nxd5 {[%clk 0:02:09.1]} 12... Qxd5 {[%clk
0:01:58.1]} 13. Bf3 {[%clk 0:02:05.7]} 13... Qd6 {[%clk 0:01:58]} 14. O-O {[%clk
0:01:44.7]} 14... h6 {[%clk 0:01:58.8]} 15. Ne4 {[%clk 0:01:45.1]} 15... Nxe4
{[%clk 0:02:00.3]} 16. Bxe4 {[%clk 0:01:46.1]} 16... Nd8 {[%clk 0:01:59]} 17. b4
{[%clk 0:01:45.5]} 17... c6 {[%clk 0:01:59.4]} 18. Bb2 {[%clk 0:01:46.6]} 18...
Ne6 {[%clk 0:01:57.1]} 19. Rad1 {[%clk 0:01:34.2]} 19... Rad8 {[%clk 0:01:58.3]}
20. Qc4 {[%clk 0:01:27.9]} 20... a6 {[%clk 0:01:56.9]} 21. Bc2 {[%clk
0:01:23.2]} 21... Bf6 {[%clk 0:01:52.4]} 22. f4 {[%clk 0:01:16.5]} 22... Rfe8
{[%clk 0:01:44.9]} 23. Qe4 {[%clk 0:01:06.6]} 23... Nf8 {[%clk 0:01:43.9]} 24.
f5 {[%clk 0:00:48.9]} 24... Qd5 {[%clk 0:01:34.2]} 25. Bc3 {[%clk 0:00:37]}
25... Nh7 {[%clk 0:01:31.6]} 26. Qg4 {[%clk 0:00:37.2]} 26... e4 {[%clk
0:01:27.2]} 27. Bxf6 {[%clk 0:00:37.3]} 27... Nxf6 {[%clk 0:01:29.1]} 28. Qe2
{[%clk 0:00:37.2]} 28... Qa2 {[%clk 0:01:29.3]} 29. Bb1 {[%clk 0:00:35.3]} 29...
Qxa3 {[%clk 0:01:29.6]} 30. g4 {[%clk 0:00:36.3]} 30... Qxb4 {[%clk 0:01:30.1]}
31. h4 {[%clk 0:00:37.2]} 31... Qb5 {[%clk 0:01:26]} 32. g5 {[%clk 0:00:37.7]}
32... Qxe2 {[%clk 0:01:26.3]} 0-1

[Event "*** Titled Tuesday Blitz"]
[Site "Chess.com"]
[Date "2020.02.04"]
[Round "6"]
[White "Quiet_Desperation"]
[Black "doons21"]
[Result "0-1"]
[WhiteElo "2426"]
[BlackElo "2648"]
[TimeControl "180+2"]
[EndTime "10:19:39 PST"]
[Termination "doons21 won by resignation"]

1. e4 {[%clk 0:03:01.9]} 1... e6 {[%clk 0:03:00.3]} 2. d4 {[%clk 0:03:00.7]}
2... d5 {[%clk 0:03:01.7]} 3. Nc3 {[%clk 0:03:01.9]} 3... Bb4 {[%clk 0:03:02.4]}
4. e5 {[%clk 0:03:02.6]} 4... Ne7 {[%clk 0:03:03.8]} 5. Bd2 {[%clk 0:03:03.6]}
5... b6 {[%clk 0:03:02.8]} 6. a3 {[%clk 0:03:02.2]} 6... Bxc3 {[%clk 0:03:03.8]}
7. Bxc3 {[%clk 0:03:03.1]} 7... Ba6 {[%clk 0:03:04.9]} 8. Bxa6 {[%clk 0:02:59]}
8... Nxa6 {[%clk 0:03:05.5]} 9. Qg4 {[%clk 0:02:55.7]} 9... O-O {[%clk 0:03:06]}
10. h4 {[%clk 0:02:54.5]} 10... c5 {[%clk 0:03:03.9]} 11. h5 {[%clk 0:02:54.3]}
11... h6 {[%clk 0:03:04.9]} 12. Rh3 {[%clk 0:02:49.5]} 12... Nf5 {[%clk
0:03:03.2]} 13. Ne2 {[%clk 0:02:42.7]} 13... Rc8 {[%clk 0:02:53.9]} 14. Qf4
{[%clk 0:02:15.2]} 14... cxd4 {[%clk 0:02:31.8]} 15. Nxd4 {[%clk 0:02:08.2]}
15... Nxd4 {[%clk 0:02:28.8]} 16. Bxd4 {[%clk 0:02:01.6]} 16... Rxc2 {[%clk
0:02:25.7]} 17. Rg3 {[%clk 0:01:59.7]} 17... Kh8 {[%clk 0:02:26.3]} 18. Be3
{[%clk 0:01:52.4]} 18... Nc5 {[%clk 0:02:01.5]} 19. Rd1 {[%clk 0:01:46.1]} 19...
Rc4 {[%clk 0:02:00.1]} 20. Bd4 {[%clk 0:01:30.7]} 20... Ne4 {[%clk 0:01:36.7]}
21. Rg4 {[%clk 0:01:18.5]} 21... f5 {[%clk 0:01:32.6]} 22. exf6 {[%clk 0:01:14]}
22... Nxf6 {[%clk 0:01:32.9]} 23. Rg6 {[%clk 0:00:56.3]} 23... Qe7 {[%clk
0:01:10.8]} 24. b3 {[%clk 0:00:29]} 24... e5 {[%clk 0:01:09.7]} 25. Rxh6+ {[%clk
0:00:26.8]} 25... Kg8 {[%clk 0:01:06.3]} 26. Qxe5 {[%clk 0:00:23.4]} 26... Qxe5+
{[%clk 0:01:06.5]} 27. Bxe5 {[%clk 0:00:24.5]} 27... Re4+ {[%clk 0:01:08.2]} 0-1

[Event "*** Titled Tuesday Blitz"]
[Site "Chess.com"]
[Date "2020.02.04"]
[Round "6"]
[White "vladimirdamjanovic"]
[Black "wild_cat99"]
[Result "1-0"]
[WhiteElo "2610"]
[BlackElo "2444"]
[TimeControl "180+2"]
[EndTime "10:19:40 PST"]
[Termination "vladimirdamjanovic won by resignation"]

1. d4 {[%clk 0:03:01.9]} 1... Nf6 {[%clk 0:00:17.8]} 2. Nf3 {[%clk 0:02:59.6]}
2... g6 {[%clk 0:00:18.4]} 3. Bg5 {[%clk 0:02:58.3]} 3... Bg7 {[%clk 0:00:20.3]}
4. Nbd2 {[%clk 0:02:59.8]} 4... O-O {[%clk 0:00:21.9]} 5. e4 {[%clk 0:03:01.4]}
5... d6 {[%clk 0:00:23.3]} 6. c3 {[%clk 0:03:02.8]} 6... c5 {[%clk 0:00:24.6]}
7. dxc5 {[%clk 0:03:02.4]} 7... dxc5 {[%clk 0:00:25.5]} 8. h3 {[%clk 0:03:04.3]}
8... Nc6 {[%clk 0:00:25.9]} 9. Qc2 {[%clk 0:03:04.8]} 9... h6 {[%clk 0:00:26.5]}
10. Be3 {[%clk 0:03:05.6]} 10... e5 {[%clk 0:00:26.5]} 11. Bb5 {[%clk
0:03:04.1]} 11... Re8 {[%clk 0:00:28.4]} 12. O-O {[%clk 0:03:00.9]} 12... Qe7
{[%clk 0:00:28.3]} 13. Bxc6 {[%clk 0:02:51.5]} 13... bxc6 {[%clk 0:00:30.2]} 14.
Nc4 {[%clk 0:02:52.2]} 14... Ba6 {[%clk 0:00:31]} 15. Nfd2 {[%clk 0:02:52.9]}
15... Nd7 {[%clk 0:00:31.3]} 16. Rfd1 {[%clk 0:02:45.1]} 16... Rab8 {[%clk
0:00:29.7]} 17. b3 {[%clk 0:02:42.3]} 17... Nb6 {[%clk 0:00:25.4]} 18. Nb2
{[%clk 0:02:42.7]} 18... Bf8 {[%clk 0:00:22.1]} 19. c4 {[%clk 0:02:42.2]} 19...
Bc8 {[%clk 0:00:15.2]} 20. Nd3 {[%clk 0:02:35.9]} 20... Nd7 {[%clk 0:00:12]} 21.
Nb1 {[%clk 0:02:37.3]} 21... Qe6 {[%clk 0:00:11.2]} 22. Nc3 {[%clk 0:02:36.8]}
22... f5 {[%clk 0:00:11.2]} 23. Na4 {[%clk 0:02:18.7]} 23... fxe4 {[%clk
0:00:06.8]} 24. Ndxc5 {[%clk 0:02:16.5]} 24... Nxc5 {[%clk 0:00:07.2]} 25. Bxc5
{[%clk 0:02:15.4]} 25... Qf5 {[%clk 0:00:06.7]} 26. Re1 {[%clk 0:01:57.6]} 26...
Re6 {[%clk 0:00:04.1]} 27. Qxe4 {[%clk 0:01:53.3]} 27... Qxe4 {[%clk 0:00:04.5]}
28. Rxe4 {[%clk 0:01:55.2]} 28... Bd7 {[%clk 0:00:04.8]} 29. Rd1 {[%clk
0:01:52.1]} 29... Rb7 {[%clk 0:00:05.3]} 30. Bxf8 {[%clk 0:01:40.9]} 30... Kxf8
{[%clk 0:00:07.2]} 31. Nc5 {[%clk 0:01:42.2]} 31... Bc8 {[%clk 0:00:06.1]} 32.
Rd8+ {[%clk 0:01:34.7]} 1-0

[Event "*** Titled Tuesday Blitz"]
[Site "Chess.com"]
[Date "2020.02.04"]
[Round "6"]
[White "gurelediz"]
[Black "HouseOfDurin"]
[Result "1-0"]
[WhiteElo "2502"]
[BlackElo "2069"]
[TimeControl "180+2"]
[EndTime "10:19:55 PST"]
[Termination "gurelediz won on time"]

1. e4 {[%clk 0:03:01.9]} 1... c5 {[%clk 0:03:01]} 2. Nf3 {[%clk 0:03:00.1]} 2...
Nc6 {[%clk 0:03:02.5]} 3. d4 {[%clk 0:03:01]} 3... cxd4 {[%clk 0:03:04.4]} 4.
Nxd4 {[%clk 0:03:02.6]} 4... e5 {[%clk 0:03:05.9]} 5. Nb5 {[%clk 0:03:02.8]}
5... d6 {[%clk 0:03:07.1]} 6. N1c3 {[%clk 0:03:03]} 6... a6 {[%clk 0:03:08.2]}
7. Na3 {[%clk 0:03:04.1]} 7... b5 {[%clk 0:03:09.8]} 8. Nd5 {[%clk 0:03:04.2]}
8... Be6 {[%clk 0:03:10.8]} 9. c4 {[%clk 0:03:01.9]} 9... b4 {[%clk 0:02:59.2]}
10. Nc2 {[%clk 0:02:58.2]} 10... a5 {[%clk 0:03:00.4]} 11. g3 {[%clk 0:02:52.7]}
11... Be7 {[%clk 0:02:44.5]} 12. Bg2 {[%clk 0:02:52.3]} 12... Nf6 {[%clk
0:02:45.5]} 13. O-O {[%clk 0:02:52.7]} 13... Bxd5 {[%clk 0:02:29.5]} 14. exd5
{[%clk 0:02:45.9]} 14... Nb8 {[%clk 0:02:27.3]} 15. c5 {[%clk 0:02:46.7]} 15...
O-O {[%clk 0:02:07.1]} 16. Ne3 {[%clk 0:02:38]} 16... Na6 {[%clk 0:01:50.7]} 17.
c6 {[%clk 0:02:33.3]} 17... Ne8 {[%clk 0:01:26.6]} 18. Nc4 {[%clk 0:02:20.4]}
18... Nc5 {[%clk 0:01:21.2]} 19. Be3 {[%clk 0:02:20.5]} 19... Ra6 {[%clk
0:01:10.2]} 20. Bxc5 {[%clk 0:02:10.8]} 20... dxc5 {[%clk 0:01:12.1]} 21. Nxe5
{[%clk 0:02:11.7]} 21... Nd6 {[%clk 0:00:57.1]} 22. Nd7 {[%clk 0:02:09.6]} 22...
Re8 {[%clk 0:00:57.3]} 23. Nxc5 {[%clk 0:02:10]} 23... Rb6 {[%clk 0:00:41.8]}
24. Re1 {[%clk 0:02:08.4]} 24... Bf6 {[%clk 0:00:36.8]} 25. Nd7 {[%clk
0:02:00.5]} 25... Rxe1+ {[%clk 0:00:34.5]} 26. Qxe1 {[%clk 0:02:00.7]} 26...
Bxb2 {[%clk 0:00:35.2]} 27. Rd1 {[%clk 0:01:48.4]} 27... Bc3 {[%clk 0:00:35.6]}
28. Qe2 {[%clk 0:01:47.1]} 28... Rb5 {[%clk 0:00:30.6]} 29. Qd3 {[%clk 0:01:35]}
29... g6 {[%clk 0:00:17.7]} 30. a4 {[%clk 0:01:33.5]} 30... Rc5 {[%clk
0:00:11.9]} 31. Nxc5 {[%clk 0:01:33.5]} 1-0

[Event "*** Titled Tuesday Blitz"]
[Site "Chess.com"]
[Date "2020.02.04"]
[Round "6"]
[White "kesarev"]
[Black "GM-2023"]
[Result "1-0"]
[WhiteElo "2461"]
[BlackElo "2114"]
[TimeControl "180+2"]
[EndTime "10:19:58 PST"]
[Termination "kesarev won on time"]

1. Nf3 {[%clk 0:03:01.9]} 1... Nf6 {[%clk 0:03:00]} 2. c4 {[%clk 0:03:02.4]}
2... g6 {[%clk 0:03:00.2]} 3. Nc3 {[%clk 0:03:03.1]} 3... d5 {[%clk 0:02:55.5]}
4. cxd5 {[%clk 0:03:02.9]} 4... Nxd5 {[%clk 0:02:56.7]} 5. h4 {[%clk 0:03:02.4]}
5... Bg4 {[%clk 0:02:52.9]} 6. Qa4+ {[%clk 0:02:58.4]} 6... Bd7 {[%clk 0:02:53]}
7. Qb3 {[%clk 0:02:56.6]} 7... Nb6 {[%clk 0:02:49]} 8. h5 {[%clk 0:02:51.7]}
8... Bg7 {[%clk 0:02:43.5]} 9. h6 {[%clk 0:02:42.3]} 9... Bf6 {[%clk 0:02:44.2]}
10. d3 {[%clk 0:02:34.4]} 10... Be6 {[%clk 0:02:21.8]} 11. Qc2 {[%clk
0:02:28.8]} 11... Nc6 {[%clk 0:02:21]} 12. Ne4 {[%clk 0:02:23]} 12... O-O {[%clk
0:01:41.2]} 13. Nxf6+ {[%clk 0:02:14.2]} 13... exf6 {[%clk 0:01:43.1]} 14. b3
{[%clk 0:02:12.4]} 14... Nb4 {[%clk 0:01:24.7]} 15. Qd2 {[%clk 0:02:11.7]} 15...
a5 {[%clk 0:00:59.7]} 16. Bb2 {[%clk 0:02:12.1]} 16... N6d5 {[%clk 0:00:50]} 17.
g3 {[%clk 0:01:52.2]} 17... Re8 {[%clk 0:00:18.8]} 18. Bg2 {[%clk 0:01:48.2]}
18... a4 {[%clk 0:00:19.1]} 19. a3 {[%clk 0:01:41.5]} 19... Nc6 {[%clk
0:00:13.8]} 20. b4 {[%clk 0:01:42.5]} 20... Nb6 {[%clk 0:00:04.3]} 21. O-O
{[%clk 0:01:28.2]} 21... Bd5 {[%clk 0:00:05.1]} 22. Rad1 {[%clk 0:01:22.2]}
22... Ne5 {[%clk 0:00:03]} 23. e4 {[%clk 0:01:19.9]} 23... Bc6 {[%clk 0:00:03]}
24. Nxe5 {[%clk 0:01:13.6]} 24... fxe5 {[%clk 0:00:03.5]} 25. f4 {[%clk
0:01:15.2]} 25... Nd7 {[%clk 0:00:02.2]} 26. d4 {[%clk 0:01:14.1]} 1-0

[Event "*** Titled Tuesday Blitz"]
[Site "Chess.com"]
[Date "2020.02.04"]
[Round "6"]
[White "Genghis_K"]
[Black "dretch"]
[Result "0-1"]
[WhiteElo "2897"]
[BlackElo "2794"]
[TimeControl "180+2"]
[EndTime "10:20:09 PST"]
[Termination "dretch won by resignation"]

1. e4 {[%clk 0:02:41.6]} 1... e6 {[%clk 0:03:00.6]} 2. d4 {[%clk 0:02:41.6]}
2... d5 {[%clk 0:03:00.9]} 3. exd5 {[%clk 0:02:43.1]} 3... exd5 {[%clk
0:03:02.1]} 4. Nf3 {[%clk 0:02:44.7]} 4... Bd6 {[%clk 0:03:02.5]} 5. c4 {[%clk
0:02:45.5]} 5... Nf6 {[%clk 0:02:55.4]} 6. Nc3 {[%clk 0:02:46.5]} 6... dxc4
{[%clk 0:02:55.8]} 7. Bxc4 {[%clk 0:02:43.4]} 7... O-O {[%clk 0:02:56.8]} 8. O-O
{[%clk 0:02:31.8]} 8... Nc6 {[%clk 0:02:56.9]} 9. Bg5 {[%clk 0:02:27.9]} 9... h6
{[%clk 0:02:55]} 10. Bh4 {[%clk 0:02:28.2]} 10... Bg4 {[%clk 0:02:51]} 11. h3
{[%clk 0:02:25]} 11... Bxf3 {[%clk 0:02:41.3]} 12. Qxf3 {[%clk 0:02:25.1]} 12...
Nxd4 {[%clk 0:02:42.3]} 13. Qxb7 {[%clk 0:02:26]} 13... Rb8 {[%clk 0:02:39.6]}
14. Qxa7 {[%clk 0:02:22.7]} 14... Ra8 {[%clk 0:02:24.2]} 15. Qb7 {[%clk
0:02:14.4]} 15... Rb8 {[%clk 0:02:24.4]} 16. Qa6 {[%clk 0:02:14]} 16... Rxb2
{[%clk 0:02:18.5]} 17. Ne4 {[%clk 0:02:01.8]} 17... g5 {[%clk 0:01:39.8]} 18.
Nxd6 {[%clk 0:01:55.5]} 18... Qxd6 {[%clk 0:01:36.7]} 19. Qxd6 {[%clk
0:01:54.2]} 19... cxd6 {[%clk 0:01:37.8]} 20. Bg3 {[%clk 0:01:55.3]} 20... Ne4
{[%clk 0:01:32.7]} 21. Rfd1 {[%clk 0:01:47]} 21... Nf5 {[%clk 0:01:30.8]} 22. a4
{[%clk 0:01:38.7]} 22... Nexg3 {[%clk 0:01:29.4]} 23. Bd3 {[%clk 0:01:16.6]}
23... Ne2+ {[%clk 0:01:25.8]} 24. Kf1 {[%clk 0:01:13.5]} 24... Ned4 {[%clk
0:01:17.2]} 25. a5 {[%clk 0:01:14.9]} 25... Ra8 {[%clk 0:01:14.7]} 26. a6 {[%clk
0:01:16.2]} 26... Ra7 {[%clk 0:01:15]} 27. Be4 {[%clk 0:01:14.7]} 27... Rb4
{[%clk 0:01:05.5]} 28. Bb7 {[%clk 0:01:02.6]} 28... Ne7 {[%clk 0:01:02.7]} 29.
Rac1 {[%clk 0:00:59]} 29... Kf8 {[%clk 0:00:54.1]} 30. Rc7 {[%clk 0:00:58.7]}
30... Ne6 {[%clk 0:00:53.4]} 31. Rd7 {[%clk 0:00:52.1]} 31... Nc5 {[%clk
0:00:53]} 32. Rd8+ {[%clk 0:00:53.6]} 32... Kg7 {[%clk 0:00:53.8]} 33. Bf3
{[%clk 0:00:44.8]} 33... Rxa6 {[%clk 0:00:52]} 34. R8xd6 {[%clk 0:00:46.5]}
34... Rxd6 {[%clk 0:00:52.2]} 35. Rxd6 {[%clk 0:00:48.4]} 35... Rb1+ {[%clk
0:00:52.5]} 36. Ke2 {[%clk 0:00:49.7]} 36... Nf5 {[%clk 0:00:52.4]} 37. Rd8
{[%clk 0:00:50.1]} 37... Ne6 {[%clk 0:00:53.1]} 0-1

[Event "*** Titled Tuesday Blitz"]
[Site "Chess.com"]
[Date "2020.02.04"]
[Round "6"]
[White "secretsuperstar7"]
[Black "NemtsevIgor"]
[Result "0-1"]
[WhiteElo "2242"]
[BlackElo "2392"]
[TimeControl "180+2"]
[EndTime "10:20:26 PST"]
[Termination "NemtsevIgor won on time"]

1. e4 {[%clk 0:03:01.9]} 1... c6 {[%clk 0:03:00.8]} 2. d4 {[%clk 0:02:59.5]}
2... d5 {[%clk 0:03:01.9]} 3. e5 {[%clk 0:02:59.5]} 3... c5 {[%clk 0:03:02.1]}
4. dxc5 {[%clk 0:02:58.3]} 4... Nc6 {[%clk 0:03:02.6]} 5. Nf3 {[%clk 0:02:57.3]}
5... Bg4 {[%clk 0:03:03]} 6. Bb5 {[%clk 0:02:19.1]} 6... Qa5+ {[%clk 0:02:58.2]}
7. Nc3 {[%clk 0:02:18.8]} 7... e6 {[%clk 0:02:58]} 8. Bd2 {[%clk 0:02:00.8]}
8... Qc7 {[%clk 0:02:22.1]} 9. O-O {[%clk 0:01:48.2]} 9... Bxc5 {[%clk
0:02:20.4]} 10. h3 {[%clk 0:01:45.8]} 10... Bh5 {[%clk 0:02:12.6]} 11. Bg5
{[%clk 0:01:28.9]} 11... Ne7 {[%clk 0:02:05.5]} 12. Qd3 {[%clk 0:01:19.4]} 12...
Bxf3 {[%clk 0:02:03.6]} 13. Qxf3 {[%clk 0:01:19.8]} 13... O-O {[%clk 0:02:03.5]}
14. Bf4 {[%clk 0:01:14.4]} 14... Nd4 {[%clk 0:01:53.8]} 15. Qg4 {[%clk
0:01:08.2]} 15... Nxb5 {[%clk 0:01:31.8]} 16. Nxb5 {[%clk 0:01:07.4]} 16... Qb6
{[%clk 0:01:33]} 17. Nd6 {[%clk 0:00:50.5]} 17... Ng6 {[%clk 0:01:27.5]} 18. Bh2
{[%clk 0:00:46.6]} 18... Bxd6 {[%clk 0:01:22]} 19. exd6 {[%clk 0:00:46.8]} 19...
e5 {[%clk 0:01:23.4]} 20. h4 {[%clk 0:00:47.3]} 20... Qxd6 {[%clk 0:01:22.9]}
21. h5 {[%clk 0:00:47.9]} 21... Ne7 {[%clk 0:01:23.2]} 22. Rae1 {[%clk 0:00:44]}
22... Nc6 {[%clk 0:01:20.2]} 23. f4 {[%clk 0:00:39.7]} 23... f5 {[%clk
0:01:06.2]} 24. Qh4 {[%clk 0:00:12.2]} 24... e4 {[%clk 0:01:06.4]} 25. g4 {[%clk
0:00:10.7]} 25... Nd4 {[%clk 0:00:52.5]} 26. Rf2 {[%clk 0:00:07.2]} 26... Nf3+
{[%clk 0:00:47.8]} 27. Rxf3 {[%clk 0:00:08.2]} 27... exf3 {[%clk 0:00:49.1]} 28.
gxf5 {[%clk 0:00:05.9]} 28... Rxf5 {[%clk 0:00:42.2]} 0-1

[Event "*** Titled Tuesday Blitz"]
[Site "Chess.com"]
[Date "2020.02.04"]
[Round "6"]
[White "Bulldog167"]
[Black "AntonSmirnov"]
[Result "1/2-1/2"]
[WhiteElo "2712"]
[BlackElo "2914"]
[TimeControl "180+2"]
[EndTime "10:20:32 PST"]
[Termination "Game drawn by repetition"]

1. d4 {[%clk 0:03:01.9]} 1... d5 {[%clk 0:03:00.5]} 2. c4 {[%clk 0:03:03.5]}
2... c6 {[%clk 0:03:01.5]} 3. cxd5 {[%clk 0:03:04.7]} 3... cxd5 {[%clk
0:03:02.8]} 4. Bf4 {[%clk 0:03:06.4]} 4... Nf6 {[%clk 0:03:04.1]} 5. e3 {[%clk
0:03:07.7]} 5... Nc6 {[%clk 0:03:05.5]} 6. Nc3 {[%clk 0:03:09]} 6... Bg4 {[%clk
0:03:06.7]} 7. Qb3 {[%clk 0:03:09.2]} 7... Na5 {[%clk 0:03:08]} 8. Qa4+ {[%clk
0:03:10.6]} 8... Bd7 {[%clk 0:03:09.6]} 9. Qc2 {[%clk 0:03:12.1]} 9... e6 {[%clk
0:03:10.5]} 10. Bd3 {[%clk 0:03:13.1]} 10... Bb4 {[%clk 0:03:10.3]} 11. Nf3
{[%clk 0:03:12.6]} 11... Nh5 {[%clk 0:03:11]} 12. Bg5 {[%clk 0:03:07.8]} 12...
f6 {[%clk 0:03:12.2]} 13. Bh4 {[%clk 0:03:08]} 13... g5 {[%clk 0:03:11.7]} 14.
Bg3 {[%clk 0:03:09.2]} 14... g4 {[%clk 0:02:36.3]} 15. Nd2 {[%clk 0:03:08.6]}
15... Qe7 {[%clk 0:02:31.6]} 16. a3 {[%clk 0:02:52.3]} 16... Bxc3 {[%clk
0:02:30.4]} 17. Qxc3 {[%clk 0:02:53.1]} 17... Nc6 {[%clk 0:02:30.3]} 18. Bh4
{[%clk 0:02:24]} 18... Rc8 {[%clk 0:02:28.8]} 19. Qb3 {[%clk 0:02:25.3]} 19...
Na5 {[%clk 0:02:28.9]} 20. Qd1 {[%clk 0:02:26.4]} 20... Qg7 {[%clk 0:02:21.5]}
21. O-O {[%clk 0:02:19.5]} 21... f5 {[%clk 0:02:16.8]} 22. Qe2 {[%clk
0:02:01.7]} 22... O-O {[%clk 0:02:14.3]} 23. b4 {[%clk 0:01:20.8]} 23... Nc6
{[%clk 0:02:13.7]} 24. g3 {[%clk 0:01:19.2]} 24... Nf6 {[%clk 0:02:08.8]} 25.
Bxf6 {[%clk 0:01:14.8]} 25... Qxf6 {[%clk 0:02:09.8]} 26. Rac1 {[%clk
0:01:10.8]} 26... h5 {[%clk 0:02:08.3]} 27. h4 {[%clk 0:01:06.1]} 27... f4
{[%clk 0:01:46.6]} 28. b5 {[%clk 0:01:03]} 28... f3 {[%clk 0:01:47.8]} 29. Qd1
{[%clk 0:01:04]} 29... Ne7 {[%clk 0:01:36]} 30. Qb3 {[%clk 0:01:05.1]} 30... Kg7
{[%clk 0:01:32]} 31. Qb4 {[%clk 0:01:01.5]} 31... Rxc1 {[%clk 0:01:32.7]} 32.
Rxc1 {[%clk 0:01:02.4]} 32... Rc8 {[%clk 0:01:33.8]} 33. Rxc8 {[%clk 0:01:02]}
33... Nxc8 {[%clk 0:01:35.7]} 34. Qc5 {[%clk 0:00:55]} 34... Qe7 {[%clk
0:01:31.5]} 35. Nb3 {[%clk 0:00:51.5]} 35... b6 {[%clk 0:01:22.9]} 36. Qc7
{[%clk 0:00:33.4]} 36... Qd6 {[%clk 0:01:23.9]} 37. Qd8 {[%clk 0:00:27.1]} 37...
Qe7 {[%clk 0:01:25.1]} 38. Qc7 {[%clk 0:00:25.7]} 38... Qd6 {[%clk 0:01:26.3]}
39. Qd8 {[%clk 0:00:27]} 39... Qe7 {[%clk 0:01:07.3]} 40. Qc7 {[%clk 0:00:27.5]}
1/2-1/2